bitfinex/quotes_ETHUSD_20251126
["timestamp","ask_amount","ask_price","bid_price","bid_amount"]
[1764191412768,0.794123,3022.3,3022.2,0.001]
[1764191414265,0.308723,3022.3,3022.2,0.4262]
[1764191415250,0.308723,3022.3,3022.2,0.8514]
[1764191415433,0.518723,3022.3,3022.2,0.8514]
[1764191415630,0.518723,3022.3,3022.2,4.88584196]
[1764191415837,0.518723,3022.3,3022.2,5.71499113]
[1764191416030,0.21,3022.3,3022.2,5.71499113]
[1764191416449,0.51899438,3022.3,3022.2,5.71499113]
[1764191417144,0.51899438,3022.3,3022.2,4.46064196]
[1764191418046,0.51899488,3022.3,3022.2,4.46064196]
[1764191420239,0.51899488,3022.3,3022.2,4.03544196]
[1764191420438,0.30899488,3022.3,3022.2,4.88584196]
[1764191420630,0.51899488,3022.3,3022.2,5.71499113]
[1764191421541,0.51899488,3022.3,3022.2,5.28979113]
[1764191421745,0.51899488,3022.3,3022.2,4.46064196]
[1764191421937,0.30899488,3022.3,3022.2,4.46064196]
[1764191422136,0.30899488,3022.3,3022.2,0.72659411]
[1764191422137,0.98759488,3022.3,3022.2,0.72659411]
[1764191422458,0.98759488,3022.3,3022.2,3.30984785]
[1764191422459,1.44679488,3022.3,3022.2,3.30984785]
[1764191423644,1.44679488,3022.3,3022.2,0.001]
[1764191427264,5.16103725,3022.3,3022.2,0.001]
[1764191427466,12.21304432,3022.3,3022.2,0.001]
[1764191427877,0.405504,3022.2,3022.1,0.001]
[1764191428075,2.30820595,3022.2,3022.1,0.001]
[1764191428237,2.51820595,3022.2,3022.1,0.001]
[1764191429167,2.05900595,3022.2,3022.1,0.001]
[1764191429988,2.51820595,3022.2,3022.1,0.001]
[1764191431067,1.44350195,3022.2,3022.1,0.001]
[1764191431269,2.51820595,3022.2,3022.1,0.001]
[1764191431572,5.8270538,3022.2,3022.1,0.001]
[1764191432067,2.51820595,3022.2,3022.1,0.001]
[1764191432238,2.51836508,3022.2,3022.1,0.001]
[1764191432439,0.30915401,3022.2,3022.1,0.5219]
[1764191432649,0.51915401,3022.2,3022.1,4.25605734]
[1764191432853,0.51915401,3022.2,3022.1,5.73826339]
[1764191436277,0.30915401,3022.2,3022.1,5.73826339]
[1764191436459,0.002,3022.5,3022.2,0.72559411]
[1764191436661,0.002,3022.5,3022.4,0.4252]
[1764191436852,0.002,3022.5,3022.4,3.7338289]
[1764191437054,0.002,3022.5,3022.4,4.9783647]
[1764191437265,0.31146132,3022.5,3022.4,4.9783647]
[1764191437472,0.002,3022.5,3022.4,4.9783647]
[1764191438180,0.31139811,3022.5,3022.4,3.7338289]
[1764191438680,0.31138721,3022.5,3022.4,3.7338289]
[1764191438855,0.31138721,3022.5,3022.4,4.1590289]
[1764191439383,0.31138721,3022.5,3022.4,3.7338289]
[1764191440451,0.77998721,3022.5,3022.4,3.3086289]
[1764191440851,0.77998721,3022.5,3022.4,4.03422301]
[1764191441757,1.23918721,3022.5,3022.1,6.61885806]
[1764191442057,1.19108721,3022.4,3022.2,0.72559411]
[1764191442277,0.30938721,3022.3,3022.2,0.72559411]
[1764191442879,0.30938721,3022.3,3022.2,1.15079411]
[1764191443084,0.30938721,3022.3,3022.2,4.45964196]
[1764191443892,0.30938721,3022.3,3022.2,4.88484196]
[1764191443893,0.51938721,3022.3,3022.2,4.88484196]
[1764191444181,0.51938721,3022.3,3022.2,4.45964196]
[1764191445054,0.51929945,3022.3,3022.2,4.45964196]
[1764191445384,0.51929945,3022.3,3022.2,4.03444196]
[1764191445688,0.51929945,3022.3,3022.2,0.72559411]
[1764191446052,0.51929945,3022.3,3022.2,1.15079411]
[1764191446053,0.30929945,3022.3,3022.2,1.15079411]
[1764191446253,0.51929945,3022.3,3022.2,1.15079411]
[1764191447211,0.51929945,3022.3,3022.2,4.45964196]
[1764191450190,0.30929945,3022.3,3022.2,5.71398644]
[1764191450391,0.21,3022.4,3022.2,9.02283429]
[1764191450589,0.21,3022.4,3022.3,0.8504]
[1764191450888,0.51930262,3022.4,3022.3,0.8504]
[1764191451091,0.51930262,3022.4,3022.3,2.09324372]
[1764191451263,0.51930262,3022.4,3022.3,5.7023762]
[1764191451461,0.51930262,3022.4,3022.3,4.03433248]
[1764191452560,0.51930262,3022.4,3022.3,4.45953248]
[1764191453894,0.99060262,3022.4,3022.3,3.30873837]
[1764191455376,0.99060262,3022.4,3022.1,0.001]
[1764191455559,0.30930262,3022.3,3022.1,0.001]
[1764191455764,0.30732261,3022.2,3022.1,0.001]
[1764191456700,0.77862261,3022.2,3022.1,0.001]
[1764191457269,0.30732261,3022.2,3022.1,0.001]
[1764191458261,0.30732261,3022.2,3022.1,4.46075145]
[1764191459978,0.77862261,3022.2,3022.1,0.72659411]
[1764191460513,0.77862261,3022.2,3022.1,4.03555145]
[1764191460677,4.24504785,3022.2,3022.1,0.001]
[1764191461005,1.18296145,3022.2,3022.1,0.001]
[1764191461386,0.6803,3022.2,3022.1,0.001]
[1764191461900,0.6803,3022.2,3022.1,3.30995734]
[1764191462076,0.6803,3022.2,3022.1,0.001]
[1764191462975,0.4669,3022.5,3022.1,0.001]
[1764191463291,0.209,3022.2,3022.1,0.001]
[1764191464205,0.6803,3022.2,3022.1,0.001]
[1764191464379,0.9362,3022.2,3022.1,0.001]
[1764191464580,1.1452,3022.2,3022.1,0.001]
[1764191465578,4.45404785,3022.2,3022.1,0.001]
[1764191465778,1.85758192,3022.2,3022.1,0.001]
[1764191465977,0.209,3022.2,3022.1,0.001]
[1764191466191,0.6803,3022.2,3022.1,0.001]
[1764191467002,1.1572,3022.2,3022.1,0.001]
[1764191467808,1.46638693,3022.2,3022.1,0.001]
[1764191468521,0.99048693,3022.2,3022.1,0.001]
[1764191468705,4.77623478,3022.2,3022.1,0.001]
[1764191469423,1.46738693,3022.2,3022.1,0.001]
[1764191469999,4.77623478,3022.2,3022.1,0.001]
[1764191470632,1.46938693,3022.2,3022.1,0.001]
[1764191474818,0.78248693,3022.2,3022.1,0.001]
[1764191475023,0.52018693,3022.2,3022.1,0.5219]
[1764191476109,0.52018693,3022.2,3022.1,0.4262]
[1764191476295,0.52018693,3022.2,3022.1,0.001]
[1764191477524,0.97378693,3022.2,3022.1,0.001]
[1764191478431,0.52018693,3022.2,3022.1,0.001]
[1764191478729,0.52018693,3022.2,3022.1,0.4262]
[1764191479045,0.31118693,3022.2,3022.1,8.08396025]
[1764191479197,0.52018693,3022.2,3022.1,2.05609013]
[1764191479531,0.52018693,3022.2,3022.1,5.36504747]
[1764191481140,0.52018693,3022.2,3022.1,5.79024747]
[1764191483913,0.52018693,3022.2,3022.1,5.36504747]
[1764191484117,0.97378693,3022.2,3022.1,4.84414747]
[1764191484544,0.97378693,3022.2,3022.1,4.03555145]
[1764191487166,0.97378693,3022.2,3022.1,0.72659411]
[1764191488049,0.97378693,3022.2,3022.1,4.03555145]
[1764191488355,1.46368693,3022.2,3022.1,0.72659411]
[1764191489754,0.31118693,3022.2,3022.1,4.55645145]
[1764191489933,0.52018693,3022.2,3022.1,2.03424502]
[1764191490125,0.52018693,3022.2,3022.1,5.34320236]
[1764191491443,0.52018693,3022.2,3022.1,4.55645145]
[1764191492043,0.31118693,3022.2,3022.1,4.98165145]
[1764191492229,0.52018693,3022.2,3022.1,4.98165145]
[1764191494156,0.31118693,3022.2,3022.1,4.98165145]
[1764191494457,0.52018693,3022.2,3022.1,6.4519198]
[1764191496733,0.31118693,3022.2,3022.1,6.4519198]
[1764191499256,0.76478693,3022.2,3022.1,5.5058198]
[1764191499461,1.96738228,3022.2,3022.1,0.001]
[1764191499658,1.47748228,3022.2,3022.1,0.001]
[1764191499831,2.17638228,3022.2,3022.1,0.001]
[1764191500037,5.89073413,3022.2,3022.1,0.001]
[1764191504950,2.58188628,3022.2,3022.1,0.001]
[1764191505477,5.89073413,3022.2,3022.1,0.001]
[1764191514283,12.23073413,3022.2,3022.1,0.001]
[1764191515076,7.81748228,3022.2,3022.1,0.001]
[1764191515276,7.31378693,3022.2,3022.1,0.001]
[1764191515980,6.86018693,3022.2,3022.1,0.4262]
[1764191516150,0.52018693,3022.2,3022.1,0.4262]
[1764191516675,0.52018693,3022.2,3022.1,0.001]
[1764191519954,0.31118693,3022.2,3022.1,0.9471]
[1764191520260,0.52018693,3022.2,3022.1,1.11456941]
[1764191520875,0.31118693,3022.2,3022.1,1.11456941]
[1764191521061,0.52018693,3022.2,3022.1,1.11456941]
[1764191521673,0.31118693,3022.2,3022.1,4.42352675]
[1764191521989,0.002,3022.2,3022.1,4.42352675]
[1764191522693,0.31088632,3022.2,3022.1,3.99832675]
[1764191523280,0.31088632,3022.2,3022.1,4.42352675]
[1764191527600,0.31088632,3022.2,3022.1,3.99832675]
[1764191528423,0.31088632,3022.2,3022.1,4.42352675]
[1764191532395,0.31088632,3022.2,3022.1,3.99832675]
[1764191532893,0.78848632,3022.2,3022.1,0.001]
[1764191533070,0.78848632,3022.2,3022.1,3.83085734]
[1764191533071,0.31088481,3022.2,3022.1,3.83085734]
[1764191533280,0.31088481,3022.2,3022.1,4.25605734]
[1764191534068,0.51988481,3022.2,3022.1,4.25605734]
[1764191534279,0.51988481,3022.2,3022.1,5.08532847]
[1764191537005,0.51988481,3022.2,3022.1,4.13922847]
[1764191537172,0.51988481,3022.2,3022.1,0.001]
[1764191537173,1.46008481,3022.2,3022.1,0.001]
[1764191537774,1.46008481,3022.2,3022.1,0.72659411]
[1764191537982,1.46008481,3022.2,3022.1,4.03555145]
[1764191539304,1.46008481,3022.2,3022.1,0.72659411]
[1764191540002,0.31088481,3022.2,3022.1,4.55645145]
[1764191540202,0.51988481,3022.2,3022.1,5.7684024]
[1764191540386,0.51988481,3022.2,3022.1,5.3432024]
[1764191544103,0.51988481,3022.2,3022.1,0.001]
[1764191544104,1.86558881,3022.2,3022.1,0.001]
[1764191544305,2.5788868,3022.2,3022.1,0.001]
[1764191545803,5.88773465,3022.2,3022.1,0.001]
[1764191547984,2.5788868,3022.2,3022.1,0.001]
[1764191550019,8.9188868,3022.2,3022.1,0.001]
[1764191551286,12.22773465,3022.2,3022.1,0.001]
[1764191557793,12.01873465,3022.2,3022.1,0.001]
[1764191557993,12.22773465,3022.2,3022.1,0.001]
[1764191563395,8.9188868,3022.2,3022.1,0.001]
[1764191563797,12.22773465,3022.2,3022.1,0.001]
[1764191566526,8.9188868,3022.2,3022.1,0.001]
[1764191566898,12.22773465,3022.2,3022.1,0.001]
[1764191569133,8.9188868,3022.2,3022.1,0.001]
[1764191570130,12.22773465,3022.2,3022.1,0.001]
[1764191570430,13.11837274,3022.2,3022.1,0.001]
[1764191571132,0.405504,3022.1,3022.0,0.001]
[1764191571334,15.96104753,3022.1,3022.0,0.001]
[1764191571525,15.96104753,3022.1,3021.9,0.001]
[1764191571526,16.25091789,3022.1,3021.9,0.001]
[1764191571707,2.3673868,3022.0,3021.9,0.001]
[1764191571913,8.7073868,3022.0,3021.9,0.001]
[1764191572320,13.92983905,3022.0,3021.9,0.001]
[1764191572533,12.149672,3022.0,3021.9,0.001]
[1764191573511,0.405504,3021.9,3021.8,0.001]
[1764191573712,8.91626796,3021.9,3021.8,0.001]
[1764191573909,15.98186207,3021.9,3021.8,0.001]
[1764191574237,15.98186207,3021.9,3021.7,0.001]
[1764191574238,4.44038396,3021.8,3021.7,0.001]
[1764191574539,6.61432528,3021.8,3021.7,0.001]
[1764191577741,6.61432528,3021.8,3021.3,0.001]
[1764191577742,1.308504,3021.7,3021.3,0.001]
[1764191578042,2.0526511,3021.5,3021.3,0.001]
[1764191578237,1.88864532,3021.5,3021.3,0.001]
[1764191578415,2.37004532,3021.5,3021.3,0.001]
[1764191578611,3.46896575,3021.5,3021.3,0.001]
[1764191578815,6.77858017,3021.5,3021.3,0.001]
[1764191579947,13.11858017,3021.5,3021.3,0.001]
[1764191581338,19.52980281,3021.5,3021.3,0.001]
[1764191582011,19.04840281,3021.5,3021.3,0.001]
[1764191582372,7.76834532,3021.5,3021.4,0.4262]
[1764191582642,7.97734532,3021.5,3021.4,0.4262]
[1764191583231,7.36284132,3021.5,3021.4,0.4262]
[1764191583416,7.57184132,3021.5,3021.4,0.8514]
[1764191583826,8.03254132,3021.5,3021.4,0.001]
[1764191584747,7.57184132,3021.5,3021.4,0.4262]
[1764191584926,7.57184132,3021.5,3021.4,0.8514]
[1764191585132,6.85854333,3021.5,3021.4,4.16112396]
[1764191585326,6.64892798,3021.5,3021.4,0.8514]
[1764191585530,6.85792798,3021.5,3021.4,0.8514]
[1764191585921,6.85792798,3021.5,3021.4,4.16112396]
[1764191586250,0.30892798,3021.5,3021.4,4.90832788]
[1764191586451,0.51792798,3021.5,3021.4,5.63392199]
[1764191588642,0.51792798,3021.5,3021.4,5.20872199]
[1764191588828,0.51792798,3021.5,3021.4,4.46151807]
[1764191589157,0.51792798,3021.5,3021.4,4.88671807]
[1764191591153,0.51792798,3021.5,3021.4,4.46151807]
[1764191591732,0.51792798,3021.5,3021.4,4.88671807]
[1764191596660,0.51808134,3021.5,3021.4,4.46151807]
[1764191596857,1.01368134,3021.5,3021.4,0.001]
[1764191598633,1.46948134,3021.5,3021.4,0.001]
[1764191599466,1.01368134,3021.5,3021.4,0.001]
[1764191599664,1.46948134,3021.5,3021.4,0.001]
[1764191600160,0.51808134,3021.5,3021.4,0.4262]
[1764191601065,1.01368134,3021.5,3021.4,0.001]
[1764191601279,0.51808134,3021.5,3021.4,0.4262]
[1764191601485,0.51808134,3021.5,3021.4,3.73592396]
[1764191601684,0.51808134,3021.5,3021.4,0.4262]
[1764191602401,0.51808134,3021.5,3021.4,3.73592396]
[1764191603761,0.51808134,3021.5,3021.4,0.4262]
[1764191603964,0.51808134,3021.5,3021.4,3.73592396]
[1764191605088,0.51808134,3021.5,3021.4,0.4262]
[1764191605881,0.51808134,3021.5,3021.4,3.73592396]
[1764191606048,0.30908134,3021.5,3021.4,4.16112396]
[1764191606251,0.51808134,3021.5,3021.4,4.16112396]
[1764191609078,0.51808134,3021.5,3021.4,3.73592396]
[1764191611712,0.51808134,3021.5,3021.4,4.88671807]
[1764191611903,0.51808134,3021.5,3021.4,5.70647223]
[1764191614918,0.51808134,3021.5,3021.4,5.28127223]
[1764191615209,0.51808134,3021.5,3021.4,4.46151807]
[1764191617416,1.46948134,3021.5,3021.4,0.001]
[1764191617618,2.18347362,3021.5,3021.4,0.001]
[1764191618718,1.02307362,3021.5,3021.4,3.73592396]
[1764191618903,0.51808134,3021.5,3021.4,5.60288309]
[1764191621182,0.51808134,3021.5,3021.4,5.17768309]
[1764191622601,0.51898898,3021.5,3021.4,5.17768309]
[1764191627918,1.49878898,3021.5,3021.4,0.001]
[1764191628117,2.21301122,3021.5,3021.4,0.001]
[1764191632336,1.71621122,3021.5,3021.4,0.001]
[1764191632520,2.21301122,3021.5,3021.4,0.001]
[1764191633033,2.00401122,3021.5,3021.4,0.001]
[1764191633232,2.21301122,3021.5,3021.4,0.001]
[1764191634957,2.00401122,3021.5,3021.4,0.001]
[1764191635129,2.21301122,3021.5,3021.4,0.001]
[1764191635626,1.50721122,3021.5,3021.4,0.001]
[1764191635830,1.71621122,3021.5,3021.4,0.001]
[1764191636141,1.23321122,3021.5,3021.4,0.4262]
[1764191636338,0.51898898,3021.5,3021.4,0.4262]
[1764191636695,0.30998898,3021.5,3021.4,0.4262]
[1764191636904,1.23321122,3021.5,3021.4,4.16112396]
[1764191637099,0.30998898,3021.5,3021.4,12.11931485]
[1764191637597,0.002,3021.7,3021.4,8.29060209]
[1764191637816,0.002,3021.7,3021.6,0.4252]
[1764191638027,0.31201175,3021.7,3021.6,1.32681962]
[1764191638227,0.31201175,3021.7,3021.6,1.75201962]
[1764191639008,0.31201175,3021.7,3021.6,5.06152451]
[1764191639227,0.31201175,3021.7,3021.6,5.36191862]
[1764191639432,0.31201175,3021.7,3021.6,4.460299]
[1764191644535,0.31201175,3021.7,3021.6,4.035099]
[1764191644712,1.29181175,3021.7,3021.6,4.035099]
[1764191644907,1.29181175,3021.7,3021.4,0.001]
[1764191645113,0.483,3021.5,3021.4,0.001]
[1764191645311,1.28981175,3021.5,3021.4,0.001]
[1764191646034,1.28981175,3021.5,3021.4,3.31072396]
[1764191646225,0.31001175,3021.5,3021.4,3.31072396]
[1764191646430,1.28981175,3021.5,3021.4,3.31072396]
[1764191647416,1.28981175,3021.5,3021.4,0.001]
[1764191647614,2.40893597,3021.5,3021.4,0.001]
[1764191651246,1.23263197,3021.5,3021.4,0.001]
[1764191651739,0.51901175,3021.5,3021.4,0.001]
[1764191653641,0.97951175,3021.5,3021.4,0.001]
[1764191654149,2.15403197,3021.5,3021.4,0.001]
[1764191655948,5.86915039,3021.5,3021.4,0.001]
[1764191656740,6.00171243,3021.5,3021.4,0.001]
[1764191658254,0.51901175,3021.5,3021.4,0.8514]
[1764191658434,0.51901175,3021.5,3021.4,0.59548941]
[1764191658635,0.51901175,3021.5,3021.4,0.8514]
[1764191659045,0.209,3021.5,3021.4,0.8514]
[1764191659232,0.209,3021.5,3021.4,4.88671807]
[1764191659658,0.51841886,3021.5,3021.4,4.88671807]
[1764191660654,0.51841886,3021.5,3021.4,4.46151807]
[1764191660834,0.51841886,3021.5,3021.4,5.25024272]
[1764191661233,0.97331886,3021.5,3021.4,4.03631807]
[1764191661939,0.51841886,3021.5,3021.4,4.46151807]
[1764191662138,0.51841886,3021.5,3021.4,4.88671807]
[1764191662535,0.51841886,3021.5,3021.4,4.46151807]
[1764191669941,0.97331886,3021.5,3021.4,4.03631807]
[1764191670271,1.43511886,3021.5,3021.4,3.31072396]
[1764191670766,0.97331886,3021.5,3021.4,3.31072396]
[1764191671770,1.43511886,3021.5,3021.4,3.31072396]
[1764191672770,0.97331886,3021.5,3021.4,0.001]
[1764191673360,1.43511886,3021.5,3021.4,0.001]
[1764191673770,8.18062286,3021.5,3021.4,0.001]
[1764191673970,12.20331666,3021.5,3021.4,0.001]
[1764191674971,8.89370224,3021.5,3021.4,0.001]
[1764191676239,8.89356662,3021.5,3021.4,0.001]
[1764191679876,8.89356662,3021.5,3021.4,0.4262]
[1764191679877,7.36236262,3021.5,3021.4,0.4262]
[1764191680170,7.31331886,3021.5,3021.4,0.001]
[1764191680539,7.77511886,3021.5,3021.4,0.001]
[1764191680979,7.31331886,3021.5,3021.4,0.001]
[1764191681182,7.77511886,3021.5,3021.4,0.001]
[1764191681352,8.48783149,3021.5,3021.4,0.001]
[1764191683758,12.20294991,3021.5,3021.4,0.001]
[1764191684086,13.09366635,3021.5,3021.4,0.001]
[1764191684280,12.20287242,3021.5,3021.4,0.001]
[1764191686687,13.09366635,3021.5,3021.4,0.001]
[1764191686888,6.81888663,3021.4,3021.3,0.001]
[1764191687192,15.07614063,3021.4,3021.3,0.001]
[1764191688183,18.38586459,3021.4,3021.3,0.001]
[1764191691901,24.79924722,3021.4,3021.3,0.001]
[1764191692194,24.79924722,3021.4,3021.0,0.001]
[1764191692195,0.405504,3021.2,3021.0,0.001]
[1764191692394,9.23863474,3021.1,3021.0,0.001]
[1764191692604,1.13109811,3021.0,3020.7,0.001]
[1764191692782,8.17328074,3020.8,3020.7,0.001]
[1764191692979,9.19533474,3020.8,3020.7,0.001]
[1764191693171,10.64325549,3020.8,3020.7,0.001]
[1764191693373,11.82807298,3020.8,3020.7,0.001]
[1764191693598,11.82719895,3020.8,3020.7,0.001]
[1764191693897,15.1375803,3020.8,3020.7,0.001]
[1764191695196,21.55096293,3020.8,3020.7,0.001]
[1764191695501,1.13109811,3020.7,3020.6,0.001]
[1764191695703,3.27947808,3020.7,3020.6,0.001]
[1764191695996,6.58996902,3020.7,3020.6,0.001]
[1764191697276,7.47717388,3020.7,3020.6,0.001]
[1764191697696,6.58996902,3020.7,3020.6,0.001]
[1764191698000,13.81718138,3020.7,3020.6,0.001]
[1764191699811,20.23056401,3020.7,3020.6,0.001]
[1764191700190,13.81718138,3020.7,3020.6,0.001]
[1764191700577,20.23056401,3020.7,3020.6,0.001]
[1764191700778,34.36393378,3020.7,3018.7,0.4252]
[1764191701092,6.41338263,3019.2,3018.8,3.31256838]
[1764191701382,0.51679762,3019.1,3018.8,3.31256838]
[1764191701581,0.209,3019.1,3018.9,0.5209]
[1764191701812,0.9948236,3019.8,3019.0,1.15079411]
[1764191702109,0.51686693,3019.7,3019.1,0.4252]
[1764191702277,0.51686693,3019.6,3019.1,0.8504]
[1764191702477,0.30786693,3019.5,3019.1,0.4252]
[1764191702778,0.209,3019.6,3019.0,0.72559411]
[1764191702779,0.30786693,3019.4,3019.2,0.4252]
[1764191702980,0.209,3019.3,3019.2,0.4252]
[1764191703176,6.34,3020.7,3020.0,0.4252]
[1764191703412,0.51688794,3020.6,3020.0,6.62251654]
[1764191703718,0.30788794,3020.5,3020.1,0.5441]
[1764191703913,0.30788794,3020.4,3020.1,0.5441]
[1764191704200,0.51688794,3020.3,3020.2,0.4252]
[1764191704709,0.51688794,3020.3,3020.2,0.8504]
[1764191704910,0.51688794,3020.3,3020.2,1.68306276]
[1764191705410,10.60983982,3021.5,3020.2,9.03073487]
[1764191705590,1.2269625,3021.4,3020.8,0.4252]
[1764191705785,0.30810402,3021.3,3020.8,0.4252]
[1764191706104,0.30810402,3021.2,3020.8,0.8504]
[1764191706306,0.30810402,3021.1,3020.8,0.4252]
[1764191706510,0.30810402,3021.0,3020.9,0.4252]
[1764191706892,0.30810402,3021.0,3020.9,0.8504]
[1764191707292,0.51710402,3021.0,3020.9,0.8504]
[1764191707612,0.51710402,3021.0,3020.9,4.16067177]
[1764191707834,0.51710402,3021.0,3020.9,1.17230506]
[1764191708016,0.51710402,3021.0,3020.9,3.73547177]
[1764191708188,0.51710402,3021.0,3020.9,4.16067177]
[1764191709899,0.30810402,3021.0,3020.9,4.16067177]
[1764191710097,0.209,3021.0,3020.9,4.16067177]
[1764191710292,0.209,3021.0,3020.9,4.88626588]
[1764191710518,0.209,3021.0,3020.9,5.70593055]
[1764191710718,6.41538263,3021.7,3021.0,0.72559411]
[1764191711017,0.002,3021.1,3021.0,1.15079411]
[1764191711215,0.211,3021.1,3021.0,0.72559411]
[1764191711413,0.5193498,3021.1,3021.0,4.4609563]
[1764191711616,0.5193498,3021.1,3021.0,5.33057557]
[1764191711819,0.5193498,3021.1,3021.0,5.75577557]
[1764191713408,0.5193498,3021.1,3021.0,5.33057557]
[1764191713799,0.5193498,3021.1,3021.0,5.75577557]
[1764191714323,0.3103498,3021.1,3021.0,5.75577557]
[1764191714522,0.002,3021.5,3021.0,12.37609995]
[1764191714823,0.002,3021.7,3021.0,12.37609995]
[1764191714824,0.002,3021.7,3021.4,1.25609411]
[1764191715037,0.002,3021.7,3021.6,0.4252]
[1764191715523,0.002,3021.7,3021.6,4.15990489]
[1764191716107,0.211,3021.7,3021.6,4.15990489]
[1764191716417,0.002,3021.7,3021.6,4.98994676]
[1764191716619,0.002,3022.1,3021.7,1.57599411]
[1764191716789,0.002,3022.1,3022.0,1.15079411]
[1764191717122,0.002,3022.1,3022.0,1.57599411]
[1764191717722,0.002,3022.1,3022.0,4.88506095]
[1764191717895,0.002,3022.1,3022.0,5.61020316]
[1764191718097,0.002,3022.1,3022.0,1.57554221]
[1764191718291,0.002,3022.1,3022.0,0.4252]
[1764191718516,0.002,3022.1,3022.0,3.73426684]
[1764191718723,0.002,3022.1,3021.8,0.72559411]
[1764191719624,0.002,3022.1,3021.9,3.30917634]
[1764191719817,0.002,3022.1,3021.5,3.73477752]
[1764191719818,0.002,3022.1,3021.7,0.72559411]
[1764191720015,0.002,3022.1,3021.7,1.50257313]
[1764191720630,0.002,3022.1,3021.7,1.92777313]
[1764191721123,0.002,3022.1,3021.7,1.50257313]
[1764191721528,0.002,3022.1,3021.5,0.72559411]
[1764191721529,0.4757,3021.8,3021.5,0.72559411]
[1764191721719,0.209,3021.7,3021.6,4.035099]
[1764191722122,0.209,3021.7,3021.6,4.460299]
[1764191725227,0.209,3021.7,3021.6,4.885499]
[1764191725742,0.209,3021.7,3021.6,4.460299]
[1764191727566,0.209,3021.7,3021.6,1.15079411]
[1764191727720,0.6847,3021.7,3020.9,6.62054354]
[1764191727915,0.4757,3021.6,3020.9,7.71832789]
[1764191728114,0.4757,3021.6,3021.0,0.72559411]
[1764191728418,0.9278,3021.6,3021.0,0.72559411]
[1764191729318,0.9278,3021.6,3021.1,6.62010524]
[1764191729718,0.9278,3021.6,3021.5,0.001]
[1764191729942,1.23523246,3021.6,3021.5,0.001]
[1764191731715,4.54473735,3021.6,3021.5,0.001]
[1764191731915,4.67729104,3021.6,3021.5,0.001]
[1764191732968,5.08279504,3021.6,3021.5,0.001]
[1764191733244,13.74483353,3021.6,3021.5,0.001]
[1764191733454,3.71533751,3021.3,3021.2,0.001]
[1764191733636,5.16522746,3021.3,3021.2,0.001]
[1764191733827,5.61732746,3021.3,3021.2,0.001]
[1764191734030,2.30749395,3021.3,3021.2,0.001]
[1764191734230,2.51649395,3021.3,3021.2,0.001]
[1764191735226,2.06439395,3021.3,3021.2,0.001]
[1764191735424,1.65888995,3021.3,3021.2,0.001]
[1764191735858,1.01708995,3021.3,3021.2,0.001]
[1764191736027,0.51643246,3021.3,3021.2,0.001]
[1764191736353,0.99213246,3021.3,3021.2,0.001]
[1764191736762,1.70178995,3021.3,3021.2,0.001]
[1764191737640,0.51643246,3021.3,3021.2,0.001]
[1764191738257,0.51643246,3021.3,3021.2,0.8514]
[1764191740436,0.51643246,3021.3,3021.2,4.16134306]
[1764191741061,0.30743246,3021.3,3021.2,4.49381207]
[1764191741268,0.51643246,3021.3,3021.2,4.91901207]
[1764191741636,0.99213246,3021.3,3021.2,4.06861207]
[1764191741836,0.51643246,3021.3,3021.2,3.73614306]
[1764191744169,0.51643246,3021.3,3021.2,3.31094306]
[1764191744384,0.51643246,3021.3,3021.2,3.73614306]
[1764191744669,0.98073246,3021.3,3021.2,0.001]
[1764191744842,0.98073246,3021.3,3021.2,0.5315]
[1764191744843,0.30743246,3021.3,3021.2,0.5315]
[1764191745170,0.51643246,3021.3,3021.2,0.9567]
[1764191745763,0.51643246,3021.3,3021.2,0.5315]
[1764191746970,0.51643246,3021.3,3021.2,3.84144306]
[1764191747599,0.30743246,3021.3,3021.2,5.09697115]
[1764191747781,0.51643246,3021.3,3021.2,5.09697115]
[1764191748340,0.51643246,3021.3,3021.2,4.67177115]
[1764191748880,0.51643246,3021.3,3021.2,4.56647115]
[1764191753577,0.51643246,3021.3,3021.2,4.99167115]
[1764191754088,0.51643246,3021.3,3021.2,4.56647115]
[1764191761470,0.51643246,3021.3,3021.2,4.99167115]
[1764191761800,0.30743246,3021.3,3021.2,4.99167115]
[1764191761984,0.51643246,3021.3,3021.2,4.99167115]
[1764191762901,0.30743246,3021.3,3021.2,4.99167115]
[1764191763199,0.51643246,3021.3,3021.2,4.99167115]
[1764191764376,0.51643246,3021.3,3021.2,4.56647115]
[1764191765120,1.00363246,3021.3,3021.2,3.31094306]
[1764191766675,0.51643246,3021.3,3021.2,3.84144306]
[1764191767206,0.51643246,3021.3,3021.2,4.26664306]
[1764191768107,0.30743246,3021.3,3021.2,4.26664306]
[1764191768279,0.51643246,3021.3,3021.2,4.26664306]
[1764191768913,0.51643246,3021.3,3021.2,5.09697115]
[1764191769095,0.51643246,3021.3,3021.2,4.67177115]
[1764191769713,0.51643246,3021.3,3021.2,5.09697115]
[1764191770306,0.30743246,3021.3,3021.2,5.82256526]
[1764191770503,0.51643246,3021.3,3021.2,5.82256526]
[1764191773934,0.30743246,3021.3,3021.2,5.82256526]
[1764191774634,0.002,3021.5,3021.3,0.72559411]
[1764191774928,0.002,3021.5,3021.4,1.33845083]
[1764191775103,0.002,3021.5,3021.4,5.7989689]
[1764191777675,0.002,3021.5,3021.4,5.3737689]
[1764191778008,0.002,3021.5,3021.4,5.7989689]
[1764191787038,0.002,3021.5,3021.4,6.2044729]
[1764191789046,0.002,3021.5,3021.4,7.09800131]
[1764191790841,1e-08,3022.2,3022.1,1.65199811]
[1764191791039,1e-08,3022.2,3022.1,5.76754274]
[1764191791341,1e-08,3022.2,3022.1,6.19274274]
[1764191791640,1e-08,3022.2,3022.1,6.32519329]
[1764191793040,1e-08,3022.2,3022.1,5.89999329]
[1764191793229,1e-08,3022.2,3022.1,5.36203874]
[1764191796339,0.47940001,3022.2,3022.1,4.84113874]
[1764191796543,0.47940001,3022.2,3022.1,3.30895734]
[1764191797116,1e-08,3022.2,3022.1,4.03455145]
[1764191797940,0.47940001,3022.2,3022.1,4.03455145]
[1764191798931,0.94400001,3022.2,3022.1,4.03455145]
[1764191799340,0.94400001,3022.2,3022.1,3.30895734]
[1764191799533,0.94400001,3022.2,3022.1,4.03455145]